fUSD/lending_fUSD_20260427
["ID","MTS","AMOUNT","RATE_DAILY","PERIOD"]
[421244861,1777287102920,-975.03,0.00034794,120]
[421244862,1777287102930,-500.0,0.00034794,120]
[421244863,1777287102939,-500.0,0.00034794,120]
[421244864,1777287102949,-500.0,0.00034794,120]
[421244865,1777287102958,-667.25,0.00034794,120]
[421244866,1777287102967,-500.0,0.00034794,120]
[421244867,1777287102976,-500.0,0.00034794,120]
[421244868,1777287102984,-514.22,0.00034794,120]
[421244869,1777287102993,-500.0,0.00034794,120]
[421244870,1777287103002,-500.0,0.00034794,120]
[421244871,1777287103012,-809.84,0.00034794,120]
[421244872,1777287103021,-500.0,0.00034794,120]
[421244873,1777287103030,-808.81,0.00034794,120]
[421244874,1777287103039,-656.37,0.00034794,120]
[421244875,1777287103048,-924.49,0.00034794,120]
[421244876,1777287103057,-1754.83,0.00034794,120]
[421244877,1777287103067,-816.58,0.00034794,120]
[421244878,1777287103076,-1699.99,0.00034794,120]
[421244879,1777287103086,-963.43,0.00034794,120]
[421244880,1777287103095,-988.21,0.00034794,120]
[421244881,1777287103104,-500.0,0.00034794,120]
[421244882,1777287103113,-803.53,0.00034794,120]
[421244883,1777287103123,-983.75,0.00034794,120]
[421244884,1777287103132,-806.48,0.00034794,120]
[421244885,1777287103141,-1721.56,0.00034794,120]
[421244886,1777287103151,-899.89,0.00034794,120]
[421244887,1777287103160,-1666.52,0.00034794,120]
[421244888,1777287103169,-903.54,0.00034794,120]
[421244889,1777287103178,-640.16,0.00034794,120]
[421244890,1777287103187,-2805.42,0.00034794,120]
[421244891,1777287103196,-500.0,0.00034794,120]
[421244892,1777287103205,-500.0,0.00034794,120]
[421244893,1777287103214,-1658.74,0.00034794,120]
[421244894,1777287103224,-507.17,0.00034794,120]
[421244895,1777287103233,-500.0,0.00034794,120]
[421244896,1777287103243,-760.12,0.00034794,120]
[421244897,1777287103252,-1131.48,0.00034794,120]
[421244898,1777287103261,-500.0,0.00034794,120]
[421244899,1777287103270,-500.0,0.00034794,120]
[421244900,1777287103279,-1746.47,0.00034794,120]
[421244901,1777287103289,-1275.35,0.00034794,120]
[421244902,1777287103298,-1186.63,0.00034794,120]
[421244903,1777287103308,-726.02,0.00034794,120]
[421244904,1777287103317,-857.8,0.00034794,120]
[421244905,1777287103326,-500.0,0.00034794,120]
[421244906,1777287103335,-942.29,0.00034794,120]
[421244907,1777287103344,-500.0,0.00034794,90]
[421244908,1777287103353,-888.77,0.00034794,120]
[421244909,1777287103362,-615.52,0.00034794,120]
[421244910,1777287103371,-500.0,0.00034794,120]
[421244911,1777287103380,-691.21,0.00034794,120]
[421244912,1777287103390,-1549.89,0.00034794,120]
[421244913,1777287103399,-597.1,0.00034794,120]
[421244914,1777287103408,-500.0,0.00034794,120]
[421244915,1777287103418,-516.45,0.00034794,120]
[421244916,1777287103427,-646.3,0.00034794,120]
[421244917,1777287103436,-996.25,0.00034794,120]
[421244918,1777287103446,-729.86,0.00034794,120]
[421244919,1777287103455,-500.0,0.00034794,120]
[421244920,1777287103464,-862.2,0.00034794,120]
[421244921,1777287103473,-902.68,0.00034794,120]
[421244922,1777287103483,-500.0,0.00034794,120]
[421244923,1777287103491,-932.95,0.00034794,120]
[421244924,1777287103501,-501.5,0.00034794,120]
[421244925,1777287103510,-932.07,0.00034794,120]
[421244926,1777287103520,-500.0,0.00034794,120]
[421244927,1777287103529,-946.6,0.00034794,120]
[421244928,1777287103539,-638.61,0.00034794,120]
[421244929,1777287103549,-500.0,0.00034794,120]
[421244930,1777287103558,-1014.18,0.00034794,120]
[421244931,1777287103567,-500.0,0.00034794,120]
[421244932,1777287103576,-714.89,0.00034794,120]
[421244933,1777287103585,-1988.17,0.00034794,120]
[421244934,1777287103594,-563.81,0.00034794,120]
[421244935,1777287103604,-500.0,0.00034794,120]
[421244936,1777287103613,-500.0,0.00034794,120]
[421244937,1777287103622,-500.0,0.00034794,7]
[421244938,1777287103631,-500.0,0.00034794,120]
[421244939,1777287103640,-885.91,0.00034794,120]
[421244940,1777287103650,-1640.34,0.00034794,120]
[421244941,1777287103659,-500.0,0.00034794,120]
[421244942,1777287103668,-891.92,0.00034794,120]
[421244943,1777287103678,-669.56,0.00034794,120]
[421244944,1777287103687,-500.0,0.00034794,120]
[421244945,1777287103697,-1390.78,0.00034794,120]
[421244946,1777287103707,-500.0,0.00034794,120]
[421244947,1777287103716,-500.0,0.00034794,120]
[421244948,1777287103725,-500.0,0.00034794,120]
[421244949,1777287103735,-500.0,0.00034794,120]
[421244950,1777287103744,-500.0,0.00034794,60]
[421244951,1777287103753,-668.1,0.00034794,120]
[421244952,1777287103762,-485.06742992,0.00034794,120]
[421244953,1777287103771,-500.0,0.00034794,120]
[421244954,1777287103781,-660.18,0.00034794,120]
[421244955,1777287103790,-691.69,0.00034794,120]
[421244956,1777287103800,-500.0,0.00034794,120]
[421244957,1777287103809,-691.03,0.00034794,120]
[421244958,1777287103818,-500.0,0.00034794,120]
[421244959,1777287103827,-618.59,0.00034794,30]
[421244960,1777287103836,-953.58,0.00034794,120]
[421244961,1777287103846,-922.63,0.00034794,120]
[421244962,1777287103855,-4917.9,0.00034794,120]
[421244963,1777287103865,-525.11,0.00034794,120]
[421244964,1777287103875,-551.36,0.00034794,120]
[421244965,1777287103884,-500.0,0.00034794,120]
[421244966,1777287103894,-840.29,0.00034794,120]
[421244967,1777287103904,-500.0,0.00034794,120]
[421244968,1777287103913,-739.88,0.00034794,120]
[421244969,1777287103923,-919.84,0.00034794,120]
[421244970,1777287103933,-1800.54,0.00034794,120]
[421244971,1777287103942,-366.49040819,0.00034794,120]
[421244972,1777287103951,-1344.25,0.00034794,120]
[421244973,1777287103960,-500.0,0.00034794,30]
[421244974,1777287103969,-493.77543806,0.00034794,120]
[421244975,1777287103978,-500.0,0.00034794,120]
[421244976,1777287103988,-916.78,0.00034794,120]
[421244977,1777287103997,-500.0,0.00034794,60]
[421244978,1777287104006,-1345.97,0.00034794,120]
[421244979,1777287104016,-1078.03,0.00034794,120]
[421244980,1777287104025,-500.0,0.00034794,120]
[421244981,1777287104035,-500.0,0.00034794,14]
[421244982,1777287104044,-947.63,0.00034794,120]
[421244983,1777287104053,-549.91,0.00034794,120]
[421244984,1777287104063,-500.0,0.00034794,120]
[421244985,1777287104072,-500.0,0.00034794,120]
[421244986,1777287104082,-748.29,0.00034794,120]
[421244987,1777287104091,-500.0,0.00034794,120]
[421244988,1777287104100,-1742.02,0.00034794,120]
[421244989,1777287104109,-980.13,0.00034794,120]
[421244990,1777287104118,-547.89,0.00034794,120]
[421244991,1777287104127,-500.0,0.00034794,120]
[421244992,1777287104137,-500.0,0.00034794,120]
[421244993,1777287104146,-808.71,0.00034794,120]
[421244994,1777287104155,-697.0,0.00034794,120]
[421244995,1777287104164,-500.0,0.00034794,120]
[421244996,1777287104173,-698.74,0.00034794,120]
[421244997,1777287104183,-500.0,0.00034794,120]
[421244998,1777287104192,-861.18,0.00034794,120]
[421244999,1777287104202,-500.0,0.00034794,120]
[421245000,1777287104210,-599.72,0.00034794,120]
[421245001,1777287104219,-971.15,0.00034794,120]
[421245002,1777287104228,-1898.91,0.00034794,120]
[421245003,1777287104238,-2008.02,0.00034794,120]
[421245004,1777287104247,-500.0,0.00034794,120]
[421245005,1777287104256,-546.88,0.00034794,120]
[421245006,1777287104265,-500.0,0.00034794,120]
[421245007,1777287104274,-500.0,0.00034794,120]
[421245008,1777287104284,-933.2,0.00034794,120]
[421245009,1777287104294,-923.43,0.00034794,120]
[421245010,1777287104304,-814.23,0.00034794,7]
[421245011,1777287104313,-500.0,0.00034794,120]
[421245012,1777287104322,-545.89,0.00034794,120]
[421245013,1777287104331,-500.0,0.00034794,120]
[421245014,1777287104341,-607.22,0.00034794,120]
[421245015,1777287104351,-500.0,0.00034794,120]
[421245016,1777287104360,-1022.01,0.00034794,120]
[421245017,1777287104369,-1403.37,0.00034794,120]
[421245018,1777287104378,-571.92,0.00034794,120]
[421245019,1777287104388,-996.98,0.00034794,120]
[421245020,1777287104397,-500.0,0.00034794,120]
[421245021,1777287104406,-500.0,0.00034794,120]
[421245022,1777287104415,-500.0,0.00034794,120]
[421245023,1777287104425,-500.0,0.00034794,120]
[421245024,1777287104433,-500.0,0.00034794,120]
[421245025,1777287104443,-500.0,0.00034794,120]
[421245026,1777287104452,-500.0,0.00034794,120]
[421245027,1777287104461,-500.0,0.00034794,120]
[421245028,1777287104471,-2027.39,0.00034794,120]
[421245029,1777287104480,-500.0,0.00034794,120]
[421245030,1777287104490,-544.78,0.00034794,120]
[421245031,1777287104499,-1173.63,0.00034794,120]
[421245032,1777287104509,-580.92,0.00034794,120]
[421245033,1777287104518,-500.0,0.00034794,120]
[421245034,1777287104527,-500.0,0.00034794,120]
[421245035,1777287104536,-500.0,0.00034794,120]
[421245036,1777287104545,-957.19,0.00034794,120]
[421245037,1777287104555,-500.0,0.00034794,120]
[421245038,1777287104564,-500.0,0.00034794,120]
[421245039,1777287104573,-1129.42,0.00034794,120]
[421245040,1777287104582,-549.6,0.00034794,120]
[421245041,1777287104591,-500.0,0.00034794,120]
[421245042,1777287104601,-500.0,0.00034794,120]
[421245043,1777287104610,-500.0,0.00034794,120]
[421245044,1777287104620,-312.20257315,0.00034794,120]
[421245045,1777287104630,-500.0,0.00034794,120]
[421245046,1777287104639,-957.72,0.00034794,120]
[421245047,1777287104648,-500.0,0.00034794,120]
[421245048,1777287104658,-2273.93,0.00034794,120]
[421245049,1777287104667,-500.0,0.00034794,120]
[421245050,1777287104677,-500.0,0.00034794,120]
[421245051,1777287104685,-531.34,0.00034794,120]
[421245052,1777287104694,-500.0,0.00034794,120]
[421245053,1777287104704,-222.39428722,0.00034794,120]
[421245054,1777287104712,-500.0,0.00034794,120]
[421245055,1777287104722,-826.33,0.00034794,120]
[421245056,1777287104731,-500.0,0.00034794,120]
[421245057,1777287104740,-509.36,0.00034794,120]
[421245058,1777287104749,-500.0,0.00034794,120]
[421245059,1777287104758,-1144.83,0.00034794,120]
[421245060,1777287104768,-870.72,0.00034794,120]
[421245061,1777287104778,-500.0,0.00034794,120]
[421245062,1777287104787,-500.0,0.00034794,120]
[421245063,1777287104797,-500.0,0.00034794,120]
[421245064,1777287104806,-1987.57,0.00034794,120]
[421245065,1777287104815,-1889.91,0.00034794,120]
[421245066,1777287104825,-997.41,0.00034794,120]
[421245067,1777287104834,-500.0,0.00034794,120]
[421245068,1777287104844,-500.0,0.00034794,16]
[421245069,1777287104853,-645.47,0.00034794,120]
[421245070,1777287104862,-551.39,0.00034794,120]
[421245071,1777287104872,-500.0,0.00034794,120]
[421245072,1777287104881,-607.71,0.00034794,120]
[421245073,1777287104890,-500.0,0.00034794,120]
[421245074,1777287104900,-500.0,0.00034794,120]
[421245075,1777287104910,-1410.28,0.00034794,120]
[421245076,1777287104919,-1075.28,0.00034794,120]
[421245077,1777287104929,-512.2,0.00034794,120]
[421245078,1777287104938,-500.0,0.00034794,120]
[421245079,1777287104948,-571.84,0.00034794,120]
[421245080,1777287104957,-500.0,0.00034794,120]
[421245081,1777287104967,-670.88,0.00034794,120]
[421245082,1777287104976,-927.87,0.00034794,120]
[421245083,1777287104986,-500.0,0.00034794,120]
[421245084,1777287104996,-733.46,0.00034794,120]
[421245085,1777287105006,-500.0,0.00034794,120]
[421245086,1777287105015,-845.56,0.00034794,120]
[421245087,1777287105025,-500.0,0.00034794,120]
[421245088,1777287105035,-500.0,0.00034794,120]
[421245089,1777287105044,-1708.75,0.00034794,120]
[421245090,1777287105054,-500.0,0.00034794,120]
[421245091,1777287105063,-1389.02,0.00034794,120]
[421245092,1777287105072,-721.4,0.00034794,120]
[421245093,1777287105082,-969.99,0.00034794,120]
[421245094,1777287105092,-500.0,0.00034794,120]
[421245095,1777287105101,-500.0,0.00034794,120]
[421245096,1777287105111,-832.2,0.00034794,120]
[421245097,1777287105120,-500.0,0.00034794,120]
[421245098,1777287105130,-1256.96,0.00034794,120]
[421245099,1777287105139,-822.73,0.00034794,120]
[421245100,1777287105149,-1697.87,0.00034794,120]
[421245101,1777287105159,-725.79,0.00034794,120]
[421245102,1777287105168,-740.81,0.00034794,120]
[421245103,1777287105178,-767.5,0.00034794,120]
[421245104,1777287105187,-704.65,0.00034794,120]
[421245105,1777287105197,-874.64,0.00034794,120]
[421245106,1777287105207,-500.0,0.00034794,120]
[421245107,1777287105216,-500.0,0.00034794,120]
[421245108,1777287105225,-500.0,0.00034794,120]
[421245109,1777287105357,-539.51,0.00034794,120]
[421245110,1777287105368,-1571.63,0.00034794,120]
[421245111,1777287105378,-3139.33,0.00034794,120]
[421245112,1777287105387,-500.0,0.00034794,120]
[421245113,1777287105397,-631.89,0.00034794,120]
[421245114,1777287105406,-500.0,0.00034794,120]
[421245115,1777287105416,-724.47,0.00034794,120]
[421245116,1777287105425,-830.35,0.00034794,120]
[421245117,1777287105434,-714.42,0.00034794,120]
[421245118,1777287105444,-529.87,0.00034794,120]
[421245119,1777287105453,-890.53,0.00034794,120]
[421245120,1777287105463,-633.28,0.00034794,120]
[421245121,1777287105473,-1042.08,0.00034794,120]
[421245122,1777287105483,-500.0,0.00034794,120]
[421245123,1777287105492,-1031.26,0.00034794,120]
[421245124,1777287105502,-500.0,0.00034794,120]
[421245125,1777287105512,-466.71412295,0.00034794,120]
[421245126,1777287105521,-789.82,0.00034794,120]
[421245127,1777287105531,-500.0,0.00034794,120]
[421245128,1777287105541,-500.0,0.00034794,120]
[421245129,1777287105551,-1044.44,0.00034794,7]
[421245130,1777287105561,-500.0,0.00034794,120]
[421245131,1777287105571,-500.0,0.00034794,120]
[421245132,1777287105580,-579.7505773,0.00034794,120]
[421245133,1777287105590,-500.0,0.00034794,120]
[421245134,1777287105599,-500.0,0.00034794,120]
[421245135,1777287105608,-500.0,0.00034794,120]
[421245136,1777287105618,-2152.64,0.00034794,120]
[421245137,1777287105628,-500.0,0.00034794,120]
[421245138,1777287105638,-500.0,0.00034794,120]
[421245139,1777287105648,-951.45,0.00034794,120]
[421245140,1777287105657,-10570.76,0.00034794,120]
[421245141,1777287105667,-500.0,0.00034794,120]
[421245142,1777287105676,-500.0,0.00034794,120]
[421245143,1777287105686,-953.25,0.00034794,120]
[421245144,1777287105696,-500.0,0.00034794,120]
[421245145,1777287105706,-683.94,0.00034794,120]
[421245146,1777287105716,-1457.61,0.00034794,120]
[421245147,1777287105726,-500.0,0.00034794,120]
[421245148,1777287105735,-500.0,0.00034794,120]
[421245149,1777287105744,-853.59,0.00034794,120]
[421245150,1777287105754,-927.26,0.00034794,120]
[421245151,1777287105764,-692.0,0.00034794,120]
[421245152,1777287105773,-500.0,0.00034794,120]
[421245153,1777287105783,-1072.51,0.00034794,120]
[421245154,1777287105793,-2915.57,0.00034794,120]
[421245155,1777287105802,-500.0,0.00034794,120]
[421245156,1777287105812,-731.44,0.00034794,120]
[421245157,1777287105822,-500.0,0.00034794,120]
[421245158,1777287105832,-701.43,0.00034794,120]
[421245159,1777287105841,-500.0,0.00034794,120]
[421245160,1777287105851,-954.88,0.00034794,120]
[421245161,1777287105860,-838.15,0.00034794,120]
[421245162,1777287105870,-1783.16,0.00034794,120]
[421245163,1777287105879,-500.0,0.00034794,120]
[421245164,1777287105889,-500.0,0.00034794,120]
[421245165,1777287105899,-500.0,0.00034794,120]
[421245166,1777287105908,-500.0,0.00034794,120]
[421245167,1777287105918,-4705.11,0.00034794,120]
[421245168,1777287105928,-1730.6,0.00034794,120]
[421245169,1777287105938,-500.0,0.00034794,120]
[421245170,1777287105948,-1123.77,0.00034794,120]
[421245171,1777287105958,-500.0,0.00034794,120]
[421245172,1777287105968,-500.0,0.00034794,120]
[421245173,1777287105977,-1408.68,0.00034794,120]
[421245174,1777287105987,-714.81,0.00034794,120]
[421245175,1777287105996,-1779.59,0.00034794,120]
[421245176,1777287106007,-500.0,0.00034794,120]
[421245177,1777287106017,-667.82,0.00034794,120]
[421245178,1777287106026,-5381.05,0.00034794,120]
[421245179,1777287106036,-922.62,0.00034794,120]
[421245180,1777287106046,-625.44,0.00034794,5]
[421245181,1777287106056,-500.0,0.00034794,120]
[421245182,1777287106066,-1690.78,0.00034794,120]
[421245183,1777287106075,-2035.1,0.00034794,120]
[421245184,1777287106085,-674.61,0.00034794,120]
[421245185,1777287106095,-501.47242918,0.00034794,120]
[421245186,1777287106104,-500.0,0.00034794,120]
[421245187,1777287106113,-1164.41,0.00034794,120]
[421245188,1777287106124,-1082.08,0.00034794,120]
[421245189,1777287106133,-998.96,0.00034794,120]
[421245190,1777287106143,-500.0,0.00034794,120]
[421245191,1777287106153,-1043.04,0.00034794,120]
[421245192,1777287106163,-784.08,0.00034794,120]
[421245193,1777287106173,-1079.64,0.00034794,120]
[421245194,1777287106183,-1143.94,0.00034794,120]
[421245195,1777287106192,-500.0,0.00034794,120]
[421245196,1777287106202,-1451.57,0.00034794,120]
[421245197,1777287106212,-500.0,0.00034794,120]
[421245198,1777287106222,-500.0,0.00034794,120]
[421245199,1777287106232,-819.21,0.00034794,120]
[421245200,1777287106241,-1138.56,0.00034794,120]
[421245201,1777287106251,-601.09,0.00034794,120]
[421245202,1777287106261,-4201.7,0.00034794,120]
[421245203,1777287106271,-996.55,0.00034794,120]
[421245204,1777287106281,-1047.55,0.00034794,120]
[421245205,1777287106291,-541.91,0.00034794,120]
[421245206,1777287106301,-500.0,0.00034794,120]
[421245207,1777287106310,-500.0,0.00034794,120]
[421245208,1777287106320,-500.0,0.00034794,120]
[421245209,1777287106329,-795.18,0.00034794,120]
[421245210,1777287106340,-1162.36,0.00034794,120]
[421245211,1777287106349,-500.0,0.00034794,120]
[421245212,1777287106359,-500.0,0.00034794,120]
[421245213,1777287106368,-845.1,0.00034794,120]
[421245214,1777287106378,-1487.38,0.00034794,120]
[421245215,1777287106388,-500.0,0.00034794,120]
[421245216,1777287106398,-500.0,0.00034794,120]
[421245217,1777287106407,-500.0,0.00034794,120]
[421245218,1777287106417,-500.0,0.00034794,120]
[421245219,1777287106426,-898.94,0.00034794,120]
[421245220,1777287106436,-500.0,0.00034794,120]
[421245221,1777287106446,-500.0,0.00034794,120]
[421245222,1777287106456,-500.0,0.00034794,120]
[421245223,1777287106466,-2636.09,0.00034794,120]
[421245224,1777287106475,-500.0,0.00034794,120]
[421245225,1777287106485,-500.62,0.00034794,120]
[421245226,1777287106494,-1789.45,0.00034794,120]
[421245227,1777287106504,-500.0,0.00034794,120]
[421245228,1777287106513,-1085.3,0.00034794,120]
[421245229,1777287106523,-892.08,0.00034794,120]
[421245230,1777287106532,-500.0,0.00034794,120]
[421245231,1777287106542,-631.37,0.00034794,120]
[421245232,1777287106552,-581.62,0.00034794,120]
[421245233,1777287106562,-808.43,0.00034794,120]
[421245234,1777287106571,-741.62,0.00034794,120]
[421245235,1777287106581,-500.0,0.00034794,120]
[421245236,1777287106591,-500.0,0.00034794,120]
[421245237,1777287106600,-500.0,0.00034794,120]
[421245238,1777287106610,-500.0,0.00034794,120]
[421245239,1777287106619,-762.27,0.00034794,120]
[421245240,1777287106629,-1157.96,0.00034794,120]
[421245241,1777287106638,-633.93,0.00034794,120]
[421245242,1777287106647,-874.69,0.00034794,120]
[421245243,1777287106657,-500.0,0.00034794,120]
[421245244,1777287106667,-900.98,0.00034794,120]
[421245245,1777287106676,-500.0,0.00034794,120]
[421245246,1777287106687,-10204.73,0.00034794,120]
[421245247,1777287106697,-500.0,0.00034794,120]
[421245248,1777287106707,-1526.17,0.00034794,120]
[421245249,1777287106716,-500.0,0.00034794,120]
[421245250,1777287106726,-500.0,0.00034794,120]
[421245251,1777287106736,-891.6,0.00034794,120]
[421245252,1777287106745,-1367.53,0.00034794,120]
[421245253,1777287106754,-500.0,0.00034794,120]
[421245254,1777287106764,-683.25,0.00034794,120]
[421245255,1777287106773,-737.72,0.00034794,120]
[421245256,1777287106782,-500.0,0.00034794,120]
[421245257,1777287106792,-500.0,0.00034794,120]
[421245258,1777287106802,-10627.51,0.00034794,11]
[421245259,1777287106811,-500.0,0.00034794,120]
[421245260,1777287106821,-1508.4,0.00034794,120]
[421245261,1777287106831,-500.0,0.00034794,120]
[421245262,1777287106840,-944.61,0.00034794,120]
[421245263,1777287106849,-1952.39,0.00034794,120]
[421245264,1777287106859,-992.31,0.00034794,120]
[421245265,1777287106868,-644.32,0.00034794,120]
[421245266,1777287106878,-855.86,0.00034794,120]
[421245267,1777287106887,-938.15,0.00034794,120]
[421245268,1777287106897,-500.0,0.00034794,120]
[421245269,1777287106906,-976.87,0.00034794,120]
[421245270,1777287106916,-500.0,0.00034794,120]
[421245271,1777287106926,-500.0,0.00034794,120]
[421245272,1777287106935,-500.0,0.00034794,120]
[421245273,1777287106945,-505.03,0.00034794,120]
[421245274,1777287106955,-889.14,0.00034794,120]
[421245275,1777287106964,-500.0,0.00034794,120]
[421245276,1777287106974,-816.73,0.00034794,120]
[421245277,1777287106983,-624.72,0.00034794,120]
[421245278,1777287106993,-9821.09,0.00034794,14]
[421245279,1777287107003,-523.03,0.00034794,120]
[421245280,1777287107012,-2650.84,0.00034794,2]
[421245281,1777287107021,-500.0,0.00034794,120]
[421245282,1777287107031,-822.98,0.00034794,120]
[421245283,1777287107041,-729.37,0.00034794,120]
[421245284,1777287107051,-1000.0,0.00034794,120]
[421245285,1777287107062,-500.0,0.00034794,120]
[421245286,1777287107071,-1044.79,0.00034794,120]
[421245287,1777287107080,-2033.75,0.00034794,120]
[421245288,1777287107090,-2315.34,0.00034794,120]
[421245289,1777287107100,-957.71,0.00034794,120]
[421245290,1777287107109,-651.78,0.00034794,120]
[421245291,1777287107119,-500.0,0.00034794,120]
[421245292,1777287107128,-872.94,0.00034794,120]
[421245293,1777287107138,-1144.22,0.00034794,120]
[421245294,1777287107148,-500.0,0.00034794,120]
[421245295,1777287107158,-500.0,0.00034794,120]
[421245296,1777287107167,-905.69,0.00034794,120]
[421245297,1777287107177,-659.77,0.00034794,120]
[421245298,1777287107187,-500.0,0.00034794,120]
[421245299,1777287107196,-572.93,0.00034794,120]
[421245300,1777287107206,-526.89,0.00034794,120]
[421245301,1777287107215,-512.91811569,0.00034794,30]
[421245302,1777287107225,-2198.73,0.00034794,31]
[421245303,1777287107234,-936.24,0.00034794,120]
[421245304,1777287107244,-7236.62,0.00034794,120]
[421245305,1777287107254,-1500.0,0.00034794,120]
[421245306,1777287107263,-601.2,0.00034794,120]
[421245307,1777287107272,-1282.75,0.00034794,120]
[421245308,1777287107282,-500.0,0.00034794,120]
[421245309,1777287107292,-500.0,0.00034794,120]
[421245310,1777287107302,-500.0,0.00034794,120]
[421245311,1777287107311,-1500.0,0.00034795,2]
[421245312,1777287107320,-219.48921421,0.00034852,120]
[421245313,1777287107330,-219.48921412,0.00034852,120]
[421245314,1777287107339,-194.5,0.000349,120]
[421245315,1777287107349,-151.0,0.00034999,30]
[421245316,1777287107358,-500.0,0.00034999,30]
[421245317,1777287107368,-500.0,0.00034999,30]
[421245318,1777287107377,-695.39793187,0.00034999,30]
[421245319,1777287107386,-196.96142613,0.00034999,30]
[421245320,1777287107395,-500.0,0.00034999,30]
[421245321,1777287107405,-428.15795286,0.00034999,30]
[421245322,1777287107414,-375.66481781,0.00035,7]
[421245323,1777287107423,-810.3326095,0.00035,15]
[421245324,1777287107433,-237.94,0.00035,2]
[421245325,1777287107442,-4000.0,0.00035,15]
[421245326,1777287107452,-40919.8,0.00035068,120]
[421245327,1777287107829,-5510.884336,0.00035068,120]
[421245328,1777287107852,-406.931409,0.00035068,120]
[421245329,1777287107861,-325.762595,0.00035068,120]
[421245330,1777287107871,-342.964341,0.00035068,120]
[421245331,1777287107880,-2698.281126,0.00035068,120]
[421245332,1777287107889,-500.0,0.00035068,30]
[421245333,1777287107899,-500.0,0.00035068,90]
[421245334,1777287107909,-177.25113458,0.00035068,120]
[421245335,1777287107918,-157.5063645,0.00035068,120]
[421245336,1777287107928,-500.0,0.00035068,120]
[421245337,1777287107937,-500.0,0.00035068,120]
[421245338,1777287107947,-500.0,0.00035068,120]
[421245339,1777287107956,-500.0,0.00035068,120]
[421245340,1777287107965,-500.0,0.00035068,120]
[421245341,1777287107975,-500.0,0.00035068,120]
[421245342,1777287107984,-863.36,0.00035068,120]
[421245343,1777287107993,-500.0,0.00035068,2]
[421245344,1777287108003,-500.0,0.00035068,120]
[421245345,1777287108012,-599.06,0.00035068,120]
[421245346,1777287108021,-640.83,0.00035068,120]
[421245347,1777287108031,-500.0,0.00035068,120]
[421245348,1777287108040,-500.0,0.00035068,120]
[421245349,1777287108050,-500.0,0.00035068,120]
[421245350,1777287108060,-1211.95,0.00035068,120]
[421245351,1777287108074,-565.53,0.00035068,120]
[421245352,1777287108084,-596.84373592,0.00035068,120]
[421245353,1777287108093,-553.4,0.00035068,120]
[421245354,1777287108103,-715.07,0.00035068,120]
[421245355,1777287108112,-500.0,0.00035068,120]
[421245356,1777287108122,-938.55,0.00035068,120]
[421245357,1777287108132,-1090.36,0.00035068,120]
[421245358,1777287108142,-634.95,0.00035068,120]
[421245359,1777287108152,-500.0,0.00035068,120]
[421245360,1777287108162,-500.0,0.00035068,120]